fUSD/lending_fUSD_20250828
["ID","MTS","AMOUNT","RATE_DAILY","PERIOD"]
[381888264,1756391443762,-2708.2757118,0.00020669,2]
[381888266,1756391443771,-2272.05650181,0.00020712,2]
[381888268,1756391443781,-400.0,0.00020726,2]
[381888270,1756391443790,-301.27826866,0.00020727,2]
[381888272,1756391443800,-3000.0,0.00021,2]
[381888274,1756391443809,-400.0,0.00021,2]
[381888276,1756391443819,-3446.24833585,0.00021031,2]
[381888278,1756391443828,-400.0,0.00021274,2]
[381888280,1756391443837,-1000.0,0.00021301,2]
[381888282,1756391443846,-400.0,0.00021548,2]
[381888284,1756391443855,-154.61304075,0.00021762,2]
[381888286,1756391443865,-159.54,0.000218,2]
[381888288,1756391443874,-400.0,0.00021822,2]
[381888290,1756391443884,-552.0,0.00021918,3]
[381888292,1756391443893,-1000.0,0.00021918,3]
[381888294,1756391443902,-1000.0,0.00021918,3]
[381888296,1756391443911,-218.0,0.00021918,3]
[381888298,1756391443920,-5000.0,0.00021918,2]
[381888300,1756391443930,-150.0,0.00021918,2]
[381888302,1756391443939,-572.06,0.00022,7]
[381888304,1756391443948,-3000.0,0.00022,2]
[381888306,1756391443958,-204.07,0.00022,7]
[381888308,1756391443968,-4000.0,0.00022025,4]
[381888310,1756391443978,-400.0,0.00022096,2]
[381888312,1756391443987,-309.17,0.000221,2]
[381888314,1756391443997,-400.0,0.0002237,2]
[381888316,1756391444006,-150.0,0.00022389,2]
[381888318,1756391444015,-150.0,0.00022455,4]
[381888320,1756391444024,-2010.64,0.00022465,2]
[381888322,1756391444034,-250.0,0.00022466,2]
[381888324,1756391444047,-150.0,0.0002252,4]
[381888326,1756391444056,-150.0,0.00022585,4]
[381888327,1756391444065,-400.0,0.00022644,2]
[381888328,1756391444074,-150.0,0.00022651,4]
[381888330,1756391444084,-150.0,0.00022716,4]
[381888332,1756391444093,-150.0,0.00022782,4]
[381888334,1756391444103,-3446.24833585,0.00022796,2]
[381888336,1756391444113,-150.0,0.00022847,4]
[381888338,1756391444123,-150.0,0.00022848,4]
[381888340,1756391444134,-983.0,0.00022894,2]
[381888342,1756391444145,-150.0,0.00022913,4]
[381888344,1756391444155,-400.0,0.00022918,2]
[381888346,1756391444167,-150.0,0.00022978,4]
[381888348,1756391444178,-350.0,0.00023014,2]
[381888350,1756391444189,-150.0,0.00023044,4]
[381888352,1756391444200,-150.0,0.00023109,4]
[381888354,1756391444211,-150.0,0.00023175,4]
[381888356,1756391444224,-400.0,0.00023192,2]
[381888358,1756391444235,-150.0,0.0002324,4]
[381888360,1756391444245,-150.0,0.00023306,4]
[381888361,1756391444255,-150.0,0.00023371,4]
[381888363,1756391444264,-1000.0,0.00023431,2]
[381888365,1756391444274,-309.17,0.00023436,2]
[381888367,1756391444284,-150.0,0.00023436,4]
[381888369,1756391444293,-191.7,0.00023443,2]
[381888371,1756391444303,-400.0,0.00023466,2]
[381888373,1756391444316,-150.0,0.00023502,4]
[381888375,1756391444326,-250.50910085,0.00023562,2]
[381888377,1756391444336,-150.0,0.00023567,4]
[381888379,1756391444346,-150.0,0.00023633,4]
[381888381,1756391444355,-150.0,0.00023698,4]
[381888383,1756391444364,-154.61304075,0.000237,2]
[381888385,1756391444374,-518.19597004,0.0002374,2]
[381888387,1756391444383,-150.0,0.00023764,4]
[381888389,1756391444393,-150.0,0.00023829,4]
[381888391,1756391444403,-150.0,0.00023895,4]
[381888393,1756391444412,-150.0,0.0002396,4]
[381888395,1756391444422,-23896.3299437,0.00024,2]
[381888397,1756391444431,-150.0,0.00024026,4]
[381888399,1756391444440,-150.0,0.00024091,4]
[381888401,1756391444450,-150.0,0.00024157,4]
[381888403,1756391444459,-150.0,0.00024222,4]
[381888405,1756391444471,-150.0,0.00024288,4]
[381888406,1756391444480,-150.0,0.00024353,4]
[381888409,1756391444490,-152.76927882,0.00024375,2]
[381888410,1756391444499,-150.0,0.00024418,4]
[381888412,1756391444508,-150.0,0.00024484,4]
[381888414,1756391444518,-157.75002253,0.00024516,2]
[381888416,1756391444527,-150.0,0.00024549,4]
[381888418,1756391444536,-3446.24833585,0.00024561,2]
[381888420,1756391444545,-150.0,0.00024615,4]
[381888422,1756391444555,-2010.64,0.00024657,4]
[381888424,1756391444564,-150.0,0.00024658,2]
[381888426,1756391444574,-150.0,0.0002468,4]
[381888428,1756391444583,-158.07335005,0.00024711,2]
[381888430,1756391444592,-150.0,0.00024746,4]
[381888432,1756391444601,-150.98,0.00024789,2]
[381888434,1756391444610,-300.0,0.00024799,10]
[381888436,1756391444619,-300.0,0.00024799,10]
[381888438,1756391444629,-300.0,0.00024799,10]
[381888440,1756391444638,-285.91,0.00024799,2]
[381888442,1756391444647,-572.06,0.000248,7]
[381888444,1756391444657,-7274.4,0.000248,7]
[381888446,1756391444667,-151.514595,0.000248,7]
[381888448,1756391444676,-151.0,0.000248,7]
[381888450,1756391444685,-155.602187,0.000248,7]
[381888451,1756391444694,-268.186085,0.000248,7]
[381888452,1756391444703,-151.0,0.000248,7]
[381888454,1756391444712,-151.0,0.000248,7]
[381888456,1756391444722,-151.0,0.000248,7]
[381888458,1756391444731,-151.0,0.000248,7]
[381888459,1756391444740,-151.0,0.000248,7]
[381888461,1756391444750,-151.0,0.000248,7]
[381888463,1756391444759,-151.0,0.000248,7]
[381888465,1756391444769,-151.0,0.000248,7]
[381888466,1756391444778,-151.0,0.000248,7]
[381888467,1756391444787,-151.0,0.000248,7]
[381888468,1756391444796,-151.0,0.000248,7]
[381888469,1756391444805,-151.0,0.000248,7]
[381888470,1756391444814,-151.0,0.000248,7]
[381888471,1756391444824,-300.88323,0.000248,7]
[381888472,1756391444833,-1390.159441,0.000248,7]
[381888473,1756391444842,-1390.159441,0.000248,7]
[381888474,1756391444851,-151.0,0.000248,7]
[381888475,1756391444860,-453.795752,0.000248,7]
[381888476,1756391444869,-1390.159441,0.000248,7]
[381888477,1756391444878,-453.795752,0.000248,7]
[381888478,1756391444887,-1390.159441,0.000248,7]
[381888479,1756391444897,-453.795752,0.000248,7]
[381888480,1756391444906,-291.350232,0.000248,7]
[381888481,1756391444915,-453.795752,0.000248,7]
[381888482,1756391444925,-291.350232,0.000248,7]
[381888483,1756391444934,-291.350232,0.000248,7]
[381888484,1756391444943,-291.350232,0.000248,7]
[381888485,1756391444952,-151.535978,0.000248,7]
[381888486,1756391444961,-151.0,0.000248,7]
[381888487,1756391444972,-151.0,0.000248,7]
[381888488,1756391444980,-151.0,0.000248,7]
[381888489,1756391444990,-151.0,0.000248,7]
[381888490,1756391444999,-151.0,0.000248,7]
[381888491,1756391445008,-151.0,0.000248,7]
[381888492,1756391445017,-151.0,0.000248,7]
[381888493,1756391445026,-179.691826,0.000248,7]
[381888494,1756391445036,-151.0,0.000248,7]
[381888495,1756391445046,-151.0,0.000248,7]
[381888496,1756391445056,-151.0,0.000248,7]
[381888497,1756391445065,-151.0,0.000248,7]
[381888498,1756391445075,-151.329352,0.000248,7]
[381888499,1756391445087,-151.0,0.000248,7]
[381888500,1756391445096,-151.0,0.000248,7]
[381888501,1756391445105,-210.342464,0.000248,7]
[381888502,1756391445114,-151.268272,0.000248,7]
[381888503,1756391445124,-151.0,0.000248,7]
[381888504,1756391445134,-151.0,0.000248,7]
[381888505,1756391445143,-183.16751,0.000248,7]
[381888506,1756391445152,-151.0,0.000248,7]
[381888507,1756391445162,-152.125861,0.000248,7]
[381888508,1756391445171,-183.16751,0.000248,7]
[381888509,1756391445180,-151.0,0.000248,7]
[381888510,1756391445189,-183.16751,0.000248,7]
[381888511,1756391445198,-151.0,0.000248,7]
[381888512,1756391445207,-183.16751,0.000248,7]
[381888513,1756391445217,-5869.03,0.000248,2]
[381888514,1756391445226,-151.0,0.000248,7]
[381888515,1756391445235,-151.301828,0.000248,7]
[381888516,1756391445244,-151.0,0.000248,7]
[381888517,1756391445253,-151.0,0.000248,7]
[381888518,1756391445263,-151.0,0.000248,7]
[381888519,1756391445272,-151.0,0.000248,7]
[381888520,1756391445281,-151.0,0.000248,7]
[381888521,1756391445290,-151.0,0.000248,7]
[381888522,1756391445299,-151.0,0.000248,7]
[381888523,1756391445309,-151.0,0.000248,7]
[381888524,1756391445318,-151.0,0.000248,7]
[381888525,1756391445327,-151.0,0.000248,7]
[381888526,1756391445336,-151.0,0.000248,7]
[381888527,1756391445346,-151.0,0.000248,7]
[381888528,1756391445355,-151.0,0.000248,7]
[381888529,1756391445365,-151.0,0.000248,7]
[381888530,1756391445374,-151.0,0.000248,7]
[381888531,1756391445383,-151.0,0.000248,7]
[381888532,1756391445392,-151.150336,0.000248,7]
[381888533,1756391445401,-151.0,0.000248,7]
[381888534,1756391445410,-151.0,0.000248,7]
[381888535,1756391445420,-151.0,0.000248,7]
[381888536,1756391445430,-151.0,0.000248,7]
[381888537,1756391445439,-151.0,0.000248,7]
[381888538,1756391445448,-151.0,0.000248,7]
[381888539,1756391445458,-180.79618,0.000248,7]
[381888540,1756391445468,-180.79618,0.000248,7]
[381888541,1756391445477,-180.79618,0.000248,7]
[381888542,1756391445486,-180.79618,0.000248,7]
[381888543,1756391445495,-151.0,0.000248,7]
[381888544,1756391445504,-151.0,0.000248,7]
[381888545,1756391445514,-233.02581,0.000248,7]
[381888546,1756391445523,-151.0,0.000248,7]
[381888547,1756391445532,-233.02581,0.000248,7]
[381888548,1756391445541,-233.02581,0.000248,7]
[381888549,1756391445550,-233.02581,0.000248,7]
[381888550,1756391445560,-151.0,0.000248,7]
[381888551,1756391445569,-151.0,0.000248,7]
[381888552,1756391445579,-151.0,0.000248,7]
[381888553,1756391445589,-151.0,0.000248,7]
[381888554,1756391445598,-151.0,0.000248,7]
[381888555,1756391445607,-151.0,0.000248,7]
[381888556,1756391445616,-265.12281,0.000248,7]
[381888557,1756391445625,-151.0,0.000248,7]
[381888558,1756391445634,-151.0,0.000248,7]
[381888559,1756391445643,-151.0,0.000248,7]
[381888560,1756391445653,-151.0,0.000248,7]
[381888561,1756391445663,-151.676905,0.000248,7]
[381888562,1756391445672,-151.0,0.000248,7]
[381888563,1756391445681,-205.058773,0.000248,7]
[381888564,1756391445690,-205.058773,0.000248,7]
[381888565,1756391445699,-205.058773,0.000248,7]
[381888566,1756391445709,-205.058773,0.000248,7]
[381888567,1756391445720,-151.0,0.000248,7]
[381888568,1756391445729,-151.0,0.000248,7]
[381888569,1756391445738,-151.0,0.000248,7]
[381888570,1756391445748,-151.0,0.000248,7]
[381888571,1756391445757,-151.0,0.000248,7]
[381888572,1756391445769,-151.0,0.000248,7]
[381888573,1756391445779,-151.0,0.000248,7]
[381888574,1756391445788,-151.0,0.000248,7]
[381888575,1756391445797,-151.0,0.000248,7]
[381888576,1756391445806,-151.0,0.000248,7]
[381888577,1756391445816,-151.0,0.000248,7]
[381888578,1756391445825,-151.0,0.000248,7]
[381888579,1756391445834,-152.436627,0.000248,7]
[381888580,1756391445844,-151.0,0.000248,7]
[381888581,1756391445853,-151.0,0.000248,7]
[381888582,1756391445862,-151.0,0.000248,7]
[381888583,1756391445871,-151.0,0.000248,7]
[381888584,1756391445880,-151.0,0.000248,7]
[381888585,1756391445890,-151.0,0.000248,7]
[381888586,1756391445899,-151.0,0.000248,7]
[381888587,1756391445908,-151.0,0.000248,7]
[381888588,1756391445917,-151.0,0.000248,7]
[381888589,1756391445927,-151.0,0.000248,7]
[381888590,1756391445936,-196.217258,0.000248,7]
[381888591,1756391445946,-151.0,0.000248,7]
[381888592,1756391445955,-151.0,0.000248,7]
[381888593,1756391445964,-151.338392,0.000248,7]
[381888594,1756391445973,-602307.738195,0.000248,3]
[381888595,1756391445982,-151.0,0.000248,7]
[381888596,1756391445991,-151.0,0.000248,7]
[381888597,1756391446000,-151.0,0.000248,7]
[381888598,1756391446010,-759.700037,0.000248,7]
[381888599,1756391446019,-151.0,0.000248,7]
[381888600,1756391446029,-759.700037,0.000248,7]
[381888601,1756391446038,-759.700037,0.000248,7]
[381888602,1756391446052,-759.700037,0.000248,7]
[381888603,1756391446063,-151.0,0.000248,7]
[381888604,1756391446072,-151.0,0.000248,7]
[381888605,1756391446082,-151.0,0.000248,7]
[381888606,1756391446092,-151.0,0.000248,7]
[381888607,1756391446101,-151.0,0.000248,7]
[381888608,1756391446110,-151.0,0.000248,7]
[381888609,1756391446120,-151.0,0.000248,7]
[381888610,1756391446130,-151.0,0.000248,7]
[381888611,1756391446140,-151.0,0.000248,7]
[381888612,1756391446149,-151.0,0.000248,7]
[381888613,1756391446159,-151.0,0.000248,7]
[381888614,1756391446168,-151.0,0.000248,7]
[381888615,1756391446177,-151.0,0.000248,7]
[381888616,1756391446186,-151.0,0.000248,7]
[381888617,1756391446196,-151.0,0.000248,7]
[381888618,1756391446205,-151.0,0.000248,7]
[381888619,1756391446215,-151.0,0.000248,7]
[381888620,1756391446224,-177.751767,0.000248,7]
[381888621,1756391446234,-177.751767,0.000248,7]
[381888622,1756391446244,-151.0,0.000248,7]
[381888623,1756391446253,-151.0,0.000248,7]
[381888624,1756391446262,-177.751767,0.000248,7]
[381888625,1756391446271,-151.0,0.000248,7]
[381888626,1756391446281,-151.0,0.000248,7]
[381888627,1756391446290,-177.751767,0.000248,7]
[381888628,1756391446299,-151.0,0.000248,7]
[381888629,1756391446309,-150.0,0.00024811,4]
[381888630,1756391446318,-4000.0,0.00024822,4]
[381888631,1756391446327,-309.17,0.00024872,2]
[381888632,1756391446336,-294.5868,0.00024877,4]
[381888633,1756391446345,-300.0,0.00024899,10]
[381888634,1756391446354,-150.0,0.00024899,2]
[381888635,1756391446363,-151.0,0.000249,7]
[381888636,1756391446373,-151.0,0.000249,7]
[381888637,1756391446382,-151.0,0.000249,7]
[381888638,1756391446391,-151.0,0.000249,7]
[381888639,1756391446400,-151.0,0.000249,7]
[381888640,1756391446410,-151.0,0.000249,7]
[381888641,1756391446419,-151.0,0.000249,7]
[381888642,1756391446428,-151.0,0.000249,7]
[381888643,1756391446438,-151.0,0.000249,7]
[381888644,1756391446448,-151.0,0.000249,7]
[381888646,1756391446457,-1390.159441,0.000249,7]
[381888648,1756391446468,-1390.159441,0.000249,7]
[381888650,1756391446477,-151.0,0.000249,7]
[381888652,1756391446486,-453.795752,0.000249,7]
[381888653,1756391446496,-1390.159441,0.000249,7]
[381888655,1756391446506,-453.795752,0.000249,7]
[381888657,1756391446515,-1390.159441,0.000249,7]
[381888659,1756391446524,-453.795752,0.000249,7]
[381888661,1756391446533,-291.350232,0.000249,7]
[381888663,1756391446543,-453.795752,0.000249,7]
[381888664,1756391446552,-291.350232,0.000249,7]
[381888666,1756391446562,-291.350232,0.000249,7]
[381888668,1756391446571,-291.350232,0.000249,7]
[381888670,1756391446581,-151.0,0.000249,7]
[381888672,1756391446590,-151.0,0.000249,7]
[381888674,1756391446599,-151.0,0.000249,7]
[381888676,1756391446609,-151.0,0.000249,7]
[381888678,1756391446619,-151.0,0.000249,7]
[381888680,1756391446628,-151.0,0.000249,7]
[381888682,1756391446638,-152.247528,0.000249,7]
[381888683,1756391446647,-151.0,0.000249,7]
[381888685,1756391446657,-159.835028,0.000249,7]
[381888687,1756391446666,-151.0,0.000249,7]
[381888689,1756391446679,-151.0,0.000249,7]
[381888691,1756391446688,-151.0,0.000249,7]
[381888693,1756391446698,-151.0,0.000249,7]
[381888695,1756391446707,-151.0,0.000249,7]
[381888710,1756391446863,-183.16751,0.000249,7]
[381888712,1756391446873,-151.0,0.000249,7]
[381888714,1756391446882,-183.16751,0.000249,7]
[381888716,1756391446891,-151.0,0.000249,7]
[381888717,1756391446901,-183.16751,0.000249,7]
[381888719,1756391446911,-170.547264,0.000249,7]
[381888721,1756391446920,-183.16751,0.000249,7]
[381888723,1756391446929,-151.0,0.000249,7]
[381888725,1756391446938,-151.0,0.000249,7]
[381888727,1756391446948,-151.0,0.000249,7]
[381888729,1756391446957,-151.0,0.000249,7]
[381888731,1756391446967,-151.0,0.000249,7]
[381888733,1756391446978,-151.0,0.000249,7]
[381888735,1756391446988,-151.0,0.000249,7]
[381888736,1756391446997,-151.0,0.000249,7]
[381888738,1756391447006,-151.0,0.000249,7]
[381888740,1756391447015,-151.0,0.000249,7]
[381888742,1756391447026,-151.0,0.000249,7]
[381888744,1756391447035,-151.0,0.000249,7]
[381888746,1756391447048,-151.0,0.000249,7]
[381888748,1756391447057,-611189.522839,0.000249,3]
[381888750,1756391447067,-5597.41469595,0.000249,2]
[381888751,1756391447076,-151.0,0.000249,7]
[381888753,1756391447086,-151.0,0.000249,7]
[381888755,1756391447096,-151.0,0.000249,7]
[381888757,1756391447105,-759.700037,0.000249,7]
[381888759,1756391447115,-759.700037,0.000249,7]
[381888761,1756391447125,-759.700037,0.000249,7]
[381888763,1756391447134,-759.700037,0.000249,7]
[381888765,1756391447143,-151.0,0.000249,7]
[381888767,1756391447152,-151.0,0.000249,7]
[381888768,1756391447161,-156.377532,0.000249,7]
[381888770,1756391447171,-151.0,0.000249,7]
[381888772,1756391447181,-151.0,0.000249,7]
[381888774,1756391447190,-151.0,0.000249,7]
[381888776,1756391447200,-151.0,0.000249,7]
[381888778,1756391447209,-151.0,0.000249,7]
[381888780,1756391447220,-151.0,0.000249,7]
[381888782,1756391447230,-151.0,0.000249,7]
[381888784,1756391447240,-151.0,0.000249,7]
[381888786,1756391447250,-151.0,0.000249,7]
[381888788,1756391447261,-239.106432,0.000249,7]
[381888790,1756391447271,-151.0,0.000249,7]
[381888791,1756391447280,-217.287347,0.000249,7]
[381888793,1756391447290,-177.751767,0.000249,7]
[381888795,1756391447300,-177.751767,0.000249,7]
[381888797,1756391447311,-151.0,0.000249,7]
[381888799,1756391447320,-177.751767,0.000249,7]
[381888801,1756391447329,-151.0,0.000249,7]
[381888803,1756391447338,-151.0,0.000249,7]
[381888805,1756391447347,-177.751767,0.000249,7]
[381888807,1756391447357,-151.0,0.000249,7]
[381888808,1756391447366,-150.0,0.00024932,2]
[381888810,1756391447377,-300.0,0.00025,5]
[381888812,1756391447388,-250.0,0.00025,2]
[381888814,1756391447398,-3000.0,0.00025,2]
[381888816,1756391447408,-150.0,0.00025206,2]
[381888818,1756391447419,-150.0,0.0002548,2]
[381888820,1756391447429,-1000.0,0.00025561,2]
[381888822,1756391447441,-1682.46656715,0.00025584,2]
[381888824,1756391447451,-154.61304075,0.00025637,2]
[381888826,1756391447461,-150.0,0.00025754,2]
[381888828,1756391447472,-493.0,0.000258,2]
[381888830,1756391447482,-5597.4146958,0.00025859,4]
[381888832,1756391447492,-3000.0,0.00026,2]
[381888834,1756391447501,-151.0,0.00026,7]
[381888836,1756391447511,-151.0,0.00026,7]
[381888837,1756391447521,-151.0,0.00026,7]
[381888839,1756391447530,-151.0,0.00026,7]
[381888841,1756391447540,-151.0,0.00026,7]
[381888843,1756391447550,-151.0,0.00026,7]
[381888845,1756391447560,-151.0,0.00026,7]
[381888847,1756391447569,-185.08729,0.00026,7]
[381888849,1756391447579,-151.0,0.00026,7]
[381888851,1756391447588,-151.0,0.00026,7]
[381888853,1756391447599,-151.0,0.00026,7]
[381888855,1756391447610,-151.0,0.00026,7]
[381888857,1756391447619,-151.0,0.00026,7]
[381888859,1756391447629,-151.0,0.00026,7]
[381888861,1756391447642,-255.52414855,0.00026027,2]
[381888862,1756391447652,-250.0,0.00026028,2]
[381888864,1756391447661,-309.17,0.00026308,7]
[381888866,1756391447671,-3446.24833585,0.00026327,2]
[381888868,1756391447680,-180.61,0.00026676,2]
[381888870,1756391447689,-572.06,0.000267,7]
[381888872,1756391447699,-5597.4146958,0.00026817,6]
[381888874,1756391447709,-2010.64,0.00026849,6]
[381888876,1756391447719,-483.0,0.000269,2]
[381888878,1756391447728,-571.82,0.00026991,7]
[381888880,1756391447737,-5869.03,0.00027,2]
[381888881,1756391447746,-5655.44565799,0.0002701,2]
[381888883,1756391447756,-522.0,0.00027137,2]
[381888885,1756391447765,-7274.4,0.000272,7]
[381888887,1756391447774,-1160.065,0.00027387,16]
[381888889,1756391447785,-219.938,0.00027387,16]
[381888891,1756391447794,-833.33,0.00027397,2]
[381888893,1756391447803,-833.33,0.00027397,2]
[381888895,1756391447812,-833.33,0.00027397,2]
[381888897,1756391447821,-833.33,0.00027397,2]
[381888899,1756391447831,-833.33,0.00027397,2]
[381888901,1756391447840,-833.33,0.00027397,2]
[381888903,1756391447850,-833.33,0.00027397,2]
[381888905,1756391447859,-833.33,0.00027397,2]
[381888907,1756391447868,-833.33,0.00027397,2]
[381888909,1756391447878,-833.33,0.00027397,2]
[381888911,1756391447888,-833.33,0.00027397,2]
[381888913,1756391447897,-833.33,0.00027397,2]
[381888915,1756391447906,-833.33,0.00027397,2]
[381888916,1756391447915,-833.33,0.00027397,2]
[381888918,1756391447926,-833.33,0.00027397,2]
[381888920,1756391447938,-833.33,0.00027397,2]
[381888922,1756391447947,-833.33,0.00027397,2]
[381888924,1756391447956,-833.33,0.00027397,2]
[381888926,1756391447966,-833.33,0.00027397,2]
[381888928,1756391447977,-833.33,0.00027397,2]
[381888930,1756391447986,-833.33,0.00027397,2]
[381888932,1756391447996,-833.33,0.00027397,2]
[381888934,1756391448005,-833.33,0.00027397,2]
[381888935,1756391448015,-833.41,0.00027397,2]
[381888937,1756391448024,-300.0,0.00027397,2]
[381888939,1756391448035,-193.7,0.00027397,80]
[381888941,1756391448048,-154.61304075,0.00027575,2]
[381888943,1756391448057,-168.0,0.00027611,2]
[381888945,1756391448066,-4000.0,0.0002762,4]
[381888947,1756391448076,-309.17,0.00027744,7]
[381888949,1756391448086,-5597.4146958,0.00027776,8]
[381888951,1756391448096,-168.0,0.00027793,2]
[381888953,1756391448106,-28899.99590207,0.000279,3]
[381888955,1756391448116,-168.0,0.00027931,2]
[381888957,1756391448126,-250.0,0.00028,5]
[381888959,1756391448137,-10000.0,0.00028,2]
[381888961,1756391448147,-473.0,0.0002801,2]
[381888962,1756391448156,-3446.24833585,0.00028092,2]
[381888964,1756391448166,-335.56,0.00028219,7]
[381888966,1756391448176,-5869.03,0.000284,2]
[381888968,1756391448186,-168.0,0.00028479,2]
[381888970,1756391448196,-168.0,0.0002856,2]
[381888972,1756391448206,-168.0,0.00028662,2]
[381888974,1756391448217,-5597.4146958,0.00028734,10]
[381888976,1756391448228,-168.0,0.0002878,2]
[381888978,1756391448238,-572.06,0.000288,7]
[381888979,1756391448248,-335.56,0.00028904,8]
[381888981,1756391448258,-478.64,0.00029,7]
[381888983,1756391448268,-7274.4,0.00029,7]
[381888985,1756391448279,-2010.64,0.00029041,8]
[381888987,1756391448289,-463.0,0.0002911,2]
[381888989,1756391448300,-168.0,0.00029131,2]
[381888991,1756391448310,-309.17,0.00029179,30]
[381888993,1756391448320,-857.73,0.00029183,12]
[381888995,1756391448330,-168.0,0.00029279,2]
[381888997,1756391448339,-200.355775,0.000294,2]
[381888999,1756391448350,-154.61304075,0.00029512,2]
[381889001,1756391448360,-200.0,0.0002953,2]
[381889003,1756391448369,-168.0,0.00029555,2]
[381889005,1756391448381,-335.56,0.00029589,9]
[381889007,1756391448391,-5597.4146958,0.00029693,12]
[381889009,1756391448401,-3446.24833585,0.00029857,2]
[381889010,1756391448411,-337.53,0.0003,2]
[381889012,1756391448421,-1000.0,0.0003,12]
[381889014,1756391448430,-1000.0,0.0003,11]
[381889016,1756391448442,-1000.0,0.0003,10]
[381889018,1756391448452,-1000.0,0.0003,9]
[381889020,1756391448462,-1000.0,0.0003,8]
[381889022,1756391448472,-1000.0,0.0003,7]
[381889024,1756391448482,-1000.0,0.0003,6]
[381889026,1756391448491,-1000.0,0.0003,6]
[381889028,1756391448501,-1000.0,0.0003,5]
[381889030,1756391448511,-1000.0,0.0003,5]
[381889032,1756391448520,-1000.0,0.0003,5]
[381889034,1756391448530,-1000.0,0.0003,5]
[381889036,1756391448539,-1097.0,0.0003,4]
[381889038,1756391448549,-1000.0,0.0003,3]
[381889040,1756391448558,-6764.89,0.0003,14]
[381889042,1756391448569,-294.0,0.0003,7]
[381889044,1756391448578,-5869.03,0.0003,2]
[381889046,1756391448587,-19444.93564092,0.0003,2]
[381889048,1756391448596,-168.0,0.00030115,2]
[381889050,1756391448606,-300.0,0.00030129,10]
[381889052,1756391448616,-300.0,0.00030129,10]
[381889054,1756391448626,-192239.42245418,0.0003013,2]
[381889056,1756391448636,-13542.73874705,0.0003013,2]
[381889058,1756391448645,-7563.64929326,0.0003013,2]
[381889060,1756391448655,-200.0,0.00030137,2]
[381889062,1756391448665,-7274.4,0.000302,7]
[381889064,1756391448674,-453.0,0.0003022,2]
[381889066,1756391448684,-168.0,0.00030273,2]
[381889068,1756391448693,-335.56,0.00030273,10]
[381889070,1756391448702,-4000.0,0.00030417,4]
[381889071,1756391448712,-200.0,0.00030438,2]